lending/lending_fUSD_20251020
["ID","MTS","AMOUNT","RATE_DAILY","PERIOD"]
[391919711,1760986628761,151.0,0.00034348,30]
[391919712,1760986629229,500.0,0.00034348,30]
[391919713,1760986629266,500.0,0.00034348,30]
[391919714,1760986629347,151.0,0.00034348,30]
[391919715,1760986629890,500.0,0.00034348,30]
[391919716,1760986629921,500.0,0.00034348,30]
[391919717,1760986630180,151.0,0.00034348,30]
[391919718,1760986630546,500.0,0.00034348,30]
[391919719,1760986630578,500.0,0.00034348,30]
[391919720,1760986630848,151.0,0.00034348,30]
[391919721,1760986631229,500.0,0.00034348,30]
[391919722,1760986631482,151.0,0.00034348,30]
[391919723,1760986631714,500.0,0.00034348,30]
[391919724,1760986631753,182.8403524,0.00034348,30]
[391919725,1760986631905,500.0,0.00034348,30]
[391919726,1760986632014,500.0,0.00034348,30]
[391919727,1760986632138,151.0,0.00034348,30]
[391919728,1760986632461,500.0,0.00034348,30]
[391919729,1760986632543,500.0,0.00034348,30]
[391919730,1760986632671,500.0,0.00034348,30]
[391919731,1760986632755,151.0,0.00034348,30]
[391919732,1760986633130,500.0,0.00034348,30]
[391919733,1760986633196,500.0,0.00034348,30]
[391919734,1760986633403,151.0,0.00034348,30]
[391919735,1760986633785,500.0,0.00034348,30]
[391919736,1760986634007,500.0,0.00034348,30]
[391919737,1760986634053,151.0,0.00034348,30]
[391919738,1760986634423,500.0,0.00034348,30]
[391919739,1760986634466,500.0,0.00034348,30]
[391919740,1760986634665,151.0,0.00034348,30]
[391919741,1760986634803,500.0,0.00034348,30]
[391919742,1760986635081,500.0,0.00034348,30]
[391919743,1760986635113,500.0,0.00034348,30]
[391919744,1760986635337,151.0,0.00034348,30]
[391919745,1760986635470,500.0,0.00034348,30]
[391919746,1760986635731,500.0,0.00034348,30]
[391919747,1760986636004,151.0,0.00034348,30]
[391919748,1760986636041,500.0,0.00034348,30]
[391919749,1760986636296,500.0,0.00034348,30]
[391919750,1760986636389,500.0,0.00034348,30]
[391919751,1760986636599,500.0,0.00034348,30]
[391919752,1760986636652,151.0,0.00034348,30]
[391919753,1760986637040,500.0,0.00034348,30]
[391919754,1760986637279,500.0,0.00034348,30]
[391919755,1760986637311,151.0,0.00034348,30]
[391919756,1760986637342,500.0,0.00034348,30]
[391919757,1760986637949,500.0,0.00034348,30]
[391919758,1760986637987,151.0,0.00034348,30]
[391919759,1760986638023,500.0,0.00034348,30]
[391919760,1760986638501,500.0,0.00034348,30]
[391919761,1760986638871,500.0,0.00034348,30]
[391919762,1760986639163,500.0,0.00034348,30]
[391919763,1760986639195,151.0,0.00034348,30]
[391919764,1760986639377,500.0,0.00034348,30]
[391919765,1760986639835,151.0,0.00034348,30]
[391919766,1760986639873,500.0,0.00034348,30]
[391919767,1760986640017,500.0,0.00034348,30]
[391919768,1760986640533,500.0,0.00034348,30]
[391919769,1760986640761,500.0,0.00034348,30]
[391919770,1760986640974,151.0,0.00034348,30]
[391919771,1760986641410,500.0,0.00034348,30]
[391919772,1760986641634,151.0,0.00034348,30]
[391919773,1760986641713,500.0,0.00034348,30]
[391919774,1760986642090,500.0,0.00034348,30]
[391919775,1760986642312,151.0,0.00034348,30]
[391919776,1760986642386,500.0,0.00034348,30]
[391919777,1760986642727,500.0,0.00034348,30]
[391919778,1760986642771,500.0,0.00034348,30]
[391919779,1760986643436,500.0,0.00034348,30]
[391919780,1760986643907,500.0,0.00034348,30]
[391919781,1760986644130,500.0,0.00034348,30]
[391919782,1760986644779,500.0,0.00034348,30]
[391919783,1760986645843,500.0,0.00034348,30]
[391919784,1760986646344,500.0,0.00034348,30]
[391919785,1760986646890,500.0,0.00034348,30]
[391919786,1760986647007,500.0,0.00034348,30]
[391919787,1760986647540,500.0,0.00034348,30]
[391919788,1760986647764,500.0,0.00034348,30]
[391919789,1760986648198,500.0,0.00034348,30]
[391919790,1760986648437,500.0,0.00034348,30]
[391919791,1760986648826,500.0,0.00034348,30]
[391919792,1760986649177,500.0,0.00034348,30]
[391919793,1760986649467,250.0,0.00034348,30]
[391919794,1760986649709,500.0,0.00034348,30]
[391919795,1760986650185,250.0,0.00034348,30]
[391919796,1760986650387,500.0,0.00034348,30]
[391919797,1760986650888,250.0,0.00034348,30]
[391919798,1760986651062,500.0,0.00034348,30]
[391919799,1760986651554,250.0,0.00034348,30]
[391919800,1760986652215,250.0,0.00034348,30]
[391919801,1760986652882,250.0,0.00034348,30]
[391919802,1760986653558,250.0,0.00034348,30]
[391919804,1760986674487,161.8164086,0.00034348,30]
[391919807,1760986925390,151.0,0.00034347,30]
[391919808,1760986926016,151.0,0.00034347,30]
[391919809,1760986926620,151.0,0.00034347,30]
[391919810,1760986927271,151.0,0.00034347,30]
[391919811,1760986927942,151.0,0.00034347,30]
[391919812,1760986928601,151.0,0.00034347,30]
[391919813,1760986929264,151.0,0.00034347,30]
[391919814,1760986929910,151.0,0.00034347,30]
[391919815,1760986930555,151.0,0.00034347,30]
[391919816,1760986931209,151.0,0.00034347,30]
[391919817,1760986931870,151.0,0.00034347,30]
[391919818,1760986932501,151.0,0.00034347,30]
[391919819,1760986932616,500.0,0.00034347,30]
[391919820,1760986933162,151.0,0.00034347,30]
[391919821,1760986933342,500.0,0.00034347,30]
[391919823,1760986934075,500.0,0.00034347,30]
[391919824,1760986934731,500.0,0.00034347,30]
[391919825,1760986935409,500.0,0.00034347,30]
[391919826,1760986935559,500.0,0.00034347,30]
[391919827,1760986936078,500.0,0.00034347,30]
[391919828,1760986936169,500.0,0.00034347,30]
[391919829,1760986936616,500.0,0.00034347,30]
[391919830,1760986936768,500.0,0.00034347,30]
[391919831,1760986936895,500.0,0.00034347,30]
[391919832,1760986937309,500.0,0.00034347,30]
[391919833,1760986937462,500.0,0.00034347,30]
[391919834,1760986937595,500.0,0.00034347,30]
[391919835,1760986938483,500.0,0.00034347,30]
[391919836,1760986938519,500.0,0.00034347,30]
[391919837,1760986938582,500.0,0.00034347,30]
[391919838,1760986938686,500.0,0.00034347,30]
[391919839,1760986938847,500.0,0.00034347,30]
[391919840,1760986938919,500.0,0.00034347,30]
[391919841,1760986939353,500.0,0.00034347,30]
[391919842,1760986939601,500.0,0.00034347,30]
[391919843,1760986939646,500.0,0.00034347,30]
[391919844,1760986940074,500.0,0.00034347,30]
[391919845,1760986940268,500.0,0.00034347,30]
[391919846,1760986940312,500.0,0.00034347,30]
[391919847,1760986940778,500.0,0.00034347,30]
[391919848,1760986940941,500.0,0.00034347,30]
[391919849,1760986940981,500.0,0.00034347,30]
[391919850,1760986941442,500.0,0.00034347,30]
[391919851,1760986941619,500.0,0.00034347,30]
[391919852,1760986941657,500.0,0.00034347,30]
[391919853,1760986942115,500.0,0.00034347,30]
[391919854,1760986942292,500.0,0.00034347,30]
[391919855,1760986942343,500.0,0.00034347,30]
[391919856,1760986942789,500.0,0.00034347,30]
[391919857,1760986942951,500.0,0.00034347,30]
[391919858,1760986943479,500.0,0.00034347,30]
[391919859,1760986943563,500.0,0.00034347,30]
[391919860,1760986943624,500.0,0.00034347,30]
[391919861,1760986944079,500.0,0.00034347,30]
[391919862,1760986944213,500.0,0.00034347,30]
[391919863,1760986944255,500.0,0.00034347,30]
[391919864,1760986944783,500.0,0.00034347,30]
[391919865,1760986944847,500.0,0.00034347,30]
[391919866,1760986944968,500.0,0.00034347,30]
[391919867,1760986945399,500.0,0.00034347,30]
[391919868,1760986945514,500.0,0.00034347,30]
[391919869,1760986945687,500.0,0.00034347,30]
[391919870,1760986946065,500.0,0.00034347,30]
[391919871,1760986946163,500.0,0.00034347,30]
[391919872,1760986946378,500.0,0.00034347,30]
[391919873,1760986946916,500.0,0.00034347,30]
[391919874,1760986947037,500.0,0.00034347,30]
[391919875,1760986947433,500.0,0.00034347,30]
[391919876,1760986947751,500.0,0.00034347,30]
[391919877,1760986948433,500.0,0.00034347,30]
[391919878,1760986948722,500.0,0.00034347,30]
[391919879,1760986949196,500.0,0.00034347,30]
[391919880,1760986949839,500.0,0.00034347,30]
[391919881,1760986950068,250.0,0.00034347,30]
[391919882,1760986950722,250.0,0.00034347,30]
[391919883,1760986951427,250.0,0.00034347,30]
[391919884,1760986952105,250.0,0.00034347,30]
[391919885,1760986952797,250.0,0.00034347,30]
[391919886,1760986953411,250.0,0.00034347,30]
[391919887,1760986964326,150.0,0.00034347,30]
[391919889,1760987225974,500.0,0.00034347,30]
[391919890,1760987226611,500.0,0.00034347,30]
[391919891,1760987228211,500.0,0.00034347,30]
[391919892,1760987228571,500.0,0.00034347,30]
[391919893,1760987228881,500.0,0.00034347,30]
[391919894,1760987229195,500.0,0.00034347,30]
[391919895,1760987229565,500.0,0.00034347,30]
[391919896,1760987229886,500.0,0.00034347,30]
[391919897,1760987230206,500.0,0.00034347,30]
[391919898,1760987230576,500.0,0.00034347,30]
[391919899,1760987230882,500.0,0.00034347,30]
[391919900,1760987231225,500.0,0.00034347,30]
[391919901,1760987231537,500.0,0.00034347,30]
[391919902,1760987231891,500.0,0.00034347,30]
[391919903,1760987232215,500.0,0.00034347,30]
[391919904,1760987232553,500.0,0.00034347,30]
[391919905,1760987232865,500.0,0.00034347,30]
[391919906,1760987233233,500.0,0.00034347,30]
[391919907,1760987233531,500.0,0.00034347,30]
[391919908,1760987233872,500.0,0.00034347,30]
[391919909,1760987234312,500.0,0.00034347,30]
[391919910,1760987234550,500.0,0.00034347,30]
[391919911,1760987234930,500.0,0.00034347,30]
[391919912,1760987235751,500.0,0.00034347,30]
[391919913,1760987235908,500.0,0.00034347,30]
[391919914,1760987236166,500.0,0.00034347,30]
[391919915,1760987236423,500.0,0.00034347,30]
[391919916,1760987236609,500.0,0.00034347,30]
[391919917,1760987236991,500.0,0.00034347,30]
[391919918,1760987237079,500.0,0.00034347,30]
[391919919,1760987237684,500.0,0.00034347,30]
[391919920,1760987237731,500.0,0.00034347,30]
[391919921,1760987237764,500.0,0.00034347,30]
[391919922,1760987238246,500.0,0.00034347,30]
[391919923,1760987238461,500.0,0.00034347,30]
[391919924,1760987238828,500.0,0.00034347,30]
[391919925,1760987238903,500.0,0.00034347,30]
[391919926,1760987239138,500.0,0.00034347,30]
[391919927,1760987239488,500.0,0.00034347,30]
[391919928,1760987239571,500.0,0.00034347,30]
[391919929,1760987239813,500.0,0.00034347,30]
[391919930,1760987240287,500.0,0.00034347,30]
[391919931,1760987240979,500.0,0.00034347,30]
[391919932,1760987241014,500.0,0.00034347,30]
[391919933,1760987241650,500.0,0.00034347,30]
[391919934,1760987242312,500.0,0.00034347,30]
[391919935,1760987242458,500.0,0.00034347,30]
[391919936,1760987242991,500.0,0.00034347,30]
[391919937,1760987243167,500.0,0.00034347,30]
[391919938,1760987243660,500.0,0.00034347,30]
[391919939,1760987244525,500.0,0.00034347,30]
[391919940,1760987245175,500.0,0.00034347,30]
[391919941,1760987245830,500.0,0.00034347,30]
[391919942,1760987246489,500.0,0.00034347,30]
[391919943,1760987247140,500.0,0.00034347,30]
[391919944,1760987248014,500.0,0.00034347,30]
[391919945,1760987248444,500.0,0.00034347,30]
[391919946,1760987249110,500.0,0.00034347,30]
[391919947,1760987250287,500.0,0.00034347,30]
[391919948,1760987251544,500.0,0.00034347,30]
[391919953,1760987431643,-383.95182773,0.00014988,2]
[391919954,1760987431653,-58.0791765,0.00014998,2]
[391919955,1760987436237,-999.9208235,0.00014998,2]
[391919956,1760987436247,-300.0,0.00014998,2]
[391919957,1760987436256,-300.0,0.00014998,2]
[391919958,1760987436265,-1200.0,0.00014998,2]
[391919959,1760987436279,-500.0,0.00014999,2]
[391919960,1760987436289,-500.0,0.00014999,2]
[391919961,1760987436299,-500.0,0.00014999,2]
[391919962,1760987436310,-500.0,0.00014999,2]
[391919963,1760987436319,-500.0,0.00014999,2]
[391919964,1760987436329,-500.0,0.00014999,2]
[391919965,1760987436338,-2745.677962,0.00016333,2]
[391919966,1760987436348,-300.0,0.00016387,2]
[391919967,1760987436357,-300.0,0.00016415,2]
[391919968,1760987436367,-420.0,0.00016415,2]
[391919969,1760987436376,-500.0,0.00016438,2]
[391919970,1760987436386,-300.0,0.00016484,2]
[391919971,1760987436396,-300.0,0.00016484,2]
[391919972,1760987436406,-1680.0,0.00016498,2]
[391919973,1760987436417,-923.84326051,0.00017534,2]
[391919974,1760987436430,-76.15673949,0.00017534,2]
[391919975,1760987436439,-587.0,0.00017965,2]
[391919976,1760987436448,-2351.0,0.00018148,2]
[391919978,1760987436457,-475.93135235,0.00018562,2]
[391919980,1760987436468,-154.80460146,0.0001863,2]
[391919982,1760987436477,-525.04997993,0.00018999,2]
[391919984,1760987436486,-500.0,0.00018999,2]
[391919986,1760987436495,-500.0,0.00019145,2]
[391919987,1760987436504,-500.0,0.00019145,2]
[391919989,1760987436514,-501.76444225,0.000192,2]
[391919990,1760987436523,-501.48668253,0.000192,2]
[391919991,1760987436532,-823.0,0.00019662,2]
[391919992,1760987436541,-850.0,0.00019675,2]
[391919993,1760987436551,-500.0,0.00019693,2]
[391919994,1760987436560,-1000.0,0.00019693,2]
[391919995,1760987436569,-319.17,0.00019938,2]
[391919996,1760987436578,-151.0,0.00019938,2]
[391919997,1760987436587,-151.0,0.00019938,2]
[391919998,1760987436596,-151.0,0.00019938,2]
[391919999,1760987436606,-151.0,0.00019938,2]
[391920000,1760987436615,-151.0,0.00019938,2]
[391920001,1760987436624,-151.0,0.00019938,2]
[391920002,1760987436633,-151.0,0.00019938,2]
[391920004,1760987436643,-151.0,0.00019938,2]
[391920005,1760987436653,-151.0,0.00019938,2]
[391920006,1760987436663,-151.0,0.00019938,2]
[391920007,1760987436672,-151.0,0.00019938,2]
[391920008,1760987436682,-151.0,0.00019938,2]
[391920009,1760987436692,-151.0,0.00019938,2]
[391920010,1760987436702,-151.0,0.00019938,2]
[391920011,1760987436710,-151.0,0.00019938,2]
[391920012,1760987436721,-151.0,0.00019938,2]
[391920013,1760987436730,-151.0,0.00019938,2]
[391920014,1760987436740,-151.0,0.00019938,2]
[391920015,1760987436749,-151.0,0.00019938,2]
[391920016,1760987436759,-151.0,0.00019938,2]
[391920017,1760987436768,-151.0,0.00019938,2]
[391920018,1760987436778,-151.0,0.00019938,2]
[391920019,1760987436787,-151.0,0.00019938,2]
[391920020,1760987436797,-151.0,0.00019938,2]
[391920021,1760987436807,-151.0,0.00019938,2]
[391920022,1760987436816,-151.0,0.00019938,2]
[391920023,1760987436826,-151.0,0.00019938,2]
[391920024,1760987436836,-151.0,0.00019938,2]
[391920025,1760987436846,-151.0,0.00019938,2]
[391920026,1760987436855,-151.0,0.00019938,2]
[391920027,1760987436866,-151.0,0.00019938,2]
[391920028,1760987436875,-151.0,0.00019938,2]
[391920029,1760987436885,-151.0,0.00019938,2]
[391920030,1760987436894,-151.0,0.00019938,2]
[391920031,1760987436904,-151.0,0.00019938,2]
[391920032,1760987436913,-151.0,0.00019938,2]
[391920033,1760987436923,-151.0,0.00019938,2]
[391920034,1760987436933,-151.0,0.00019938,2]
[391920035,1760987436944,-289.94526954,0.00019938,2]
[391920036,1760987436954,-457.46635621,0.00019962,2]
[391920037,1760987436975,-320.076,0.00019962,2]
[391920038,1760987436991,-1083.9899,0.00019962,2]
[391920039,1760987437002,-544.02,0.00019962,2]
[391920040,1760987437013,-886.44774379,0.00019962,2]
[391920041,1760987437023,-500.0,0.00019999,2]
[391920042,1760987437033,-500.0,0.00019999,2]
[391920043,1760987437047,-500.0,0.00019999,2]
[391920044,1760987437057,-500.0,0.00020008,2]
[391920045,1760987437067,-319.17,0.00020212,2]
[391920046,1760987437077,-1000.0,0.00020241,2]
[391920047,1760987437087,-319.18,0.00020486,2]
[391920048,1760987437096,-1445.0,0.00020698,2]
[391920049,1760987437106,-1258.89,0.00020951,2]
[391920050,1760987437115,-1152.0,0.00021518,2]
[391920051,1760987437125,-1635.08,0.00021757,2]
[391920052,1760987437134,-160.0,0.0002178,2]
[391920053,1760987437143,-3400.0,0.00021959,2]
[391920054,1760987437153,-569.0,0.00023551,2]
[391920055,1760987437163,-150.0,0.00024388,2]
[391920056,1760987437172,-888.4,0.00024523,2]
[391920057,1760987437181,-167.66,0.00024611,2]
[391920058,1760987437191,-173.71,0.00024658,2]
[391920059,1760987437200,-16332.67,0.000247,2]
[391920060,1760987437209,-500.0,0.00024799,2]
[391920061,1760987437219,-500.0,0.00024814,2]
[391920062,1760987437233,-286.65675296,0.00024814,2]
[391920063,1760987437243,-1195.85,0.00024816,2]
[391920064,1760987437253,-250.0,0.00024826,2]
[391920065,1760987437263,-500.0,0.00024932,2]
[391920066,1760987437273,-500.0,0.00026084,2]
[391920067,1760987437282,-500.0,0.00026084,2]
[391920068,1760987437292,-167.66,0.00027072,2]
[391920069,1760987437302,-195.945,0.00028151,18]
[391920070,1760987437312,-1000.0,0.00029,2]
[391920071,1760987437321,-167.66,0.00029533,2]
[391920072,1760987437331,-500.0,0.0002958,7]
[391920073,1760987437341,-500.0,0.00029613,7]
[391920074,1760987437352,-500.0,0.00029685,7]
[391920075,1760987437362,-1500.0,0.00029932,7]
[391920076,1760987437371,-500.0,0.00029999,8]
[391920077,1760987437381,-500.0,0.00030081,7]
[391920078,1760987437390,-666.0,0.00030146,3]
[391920079,1760987437400,-1500.0,0.00030207,7]
[391920081,1760987437409,-500.0,0.00030219,7]
[391920083,1760987437419,-500.0,0.00030235,7]
[391920084,1760987437428,-1500.0,0.00030469,7]
[391920085,1760987437437,-500.0,0.00030561,7]
[391920086,1760987437449,-231.29298876,0.00030871,7]
[391920087,1760987437459,-150.0,0.00030871,7]
[391920088,1760987437469,-156.0890755,0.00030871,7]
[391920089,1760987437478,-165.3064912,0.00030871,7]
[391920090,1760987437487,-154.47723844,0.00030871,7]
[391920091,1760987437497,-157.72394,0.00030871,7]
[391920092,1760987437506,-154.35941026,0.00030871,7]
[391920093,1760987437515,-156.6900257,0.00030871,7]
[391920094,1760987437524,-500.0,0.00031024,7]
[391920095,1760987437534,-466.86,0.0003107,2]
[391920096,1760987437543,-1500.0,0.00031323,7]
[391920097,1760987437553,-500.0,0.00031603,7]
[391920098,1760987437562,-4393.2450674,0.00031702,2]
[391920099,1760987437572,-648.11903747,0.00031734,5]
[391920100,1760987437580,-739.2702097,0.00031783,2]
[391920101,1760987437590,-1500.0,0.00031836,7]
[391920102,1760987437601,-3501.18433428,0.00031873,2]
[391920103,1760987437613,-2063.5327981,0.00031934,2]
[391920104,1760987437623,-176.18,0.00031934,2]
[391920105,1760987437633,-8688.1978936,0.00031972,2]
[391920106,1760987437643,-35155.52028704,0.00031972,2]
[391920115,1760987437828,-703.57,0.00024924,2]
[391920117,1760987437837,-18146.69464,0.00031972,2]
[391920127,1760987439547,-57938.77264816,0.00031972,2]
[391920128,1760987439557,-167.66,0.00031995,2]
[391920129,1760987439568,-454.0,0.00032069,7]
[391920130,1760987439577,-3501.18433422,0.00032132,2]
[391920131,1760987439587,-500.0,0.00032147,7]
[391920132,1760987439596,-739.2702098,0.00032183,2]
[391920133,1760987439606,-10275.66331118,0.000322,120]
[391920134,1760987439616,-232.12761081,0.000322,120]
[391920135,1760987439625,-978.21955396,0.000322,120]
[391920136,1760987439634,-197.64581887,0.000322,120]
[391920137,1760987439644,-301.70873826,0.000322,120]
[391920138,1760987439653,-657.65620139,0.000322,120]
[391920139,1760987439663,-1000.0,0.000322,2]
[391920140,1760987439673,-168.0,0.00032367,2]
[391920141,1760987439683,-783.0,0.00032368,2]
[391920142,1760987439818,-2775.53,0.0003239,8]
[391920143,1760987439828,-3501.18433422,0.00032391,2]
[391920144,1760987439837,-1500.0,0.00032402,7]
[391920145,1760987439847,-1500.0,0.00032415,7]
[391920146,1760987439857,-454.0,0.00032626,2]
[391920147,1760987439866,-3501.18433422,0.00032649,2]
[391920148,1760987439876,-1000.0,0.000327,2]
[391920149,1760987439886,-500.0,0.00032721,7]
[391920150,1760987439896,-500.0,0.00032798,7]
[391920151,1760987439907,-500.0,0.00032844,7]
[391920152,1760987439917,-215.60635801,0.00032875,2]
[391920153,1760987439926,-638.87413578,0.00032875,2]
[391920154,1760987439935,-195.31870047,0.00032875,2]
[391920155,1760987439944,-1000.0,0.00032876,30]
[391920156,1760987439953,-151.0,0.00032877,30]
[391920157,1760987439963,-1500.0,0.00032887,7]
[391920158,1760987439972,-200.0,0.00032893,2]
[391920159,1760987439981,-3501.18433422,0.00032908,2]
[391920160,1760987439991,-150.0,0.00032955,2]
[391920161,1760987440000,-1000.0,0.00033013,30]
[391920162,1760987440012,-180.97307079,0.00033014,30]
[391920163,1760987440020,-180.97307079,0.00033014,30]
[391920164,1760987440030,-180.97307079,0.00033014,30]
[391920165,1760987440039,-180.97307079,0.00033014,30]
[391920166,1760987440049,-180.97307079,0.00033014,30]
[391920167,1760987440058,-180.97307079,0.00033014,30]
[391920168,1760987440068,-180.97307079,0.00033014,30]
[391920169,1760987440077,-1121.25,0.0003304,2]
[391920170,1760987440086,-500.0,0.00033056,8]
[391920171,1760987440095,-481.47853721,0.00033056,2]
[391920172,1760987440105,-514.93363163,0.00033056,8]
[391920173,1760987440114,-552.53660212,0.00033056,8]
[391920174,1760987440123,-500.0,0.00033056,8]
[391920175,1760987440132,-500.0,0.00033056,8]
[391920176,1760987440143,-500.0,0.00033112,7]
[391920177,1760987440152,-168.0,0.00033128,2]
[391920178,1760987440161,-1000.0,0.0003315,30]
[391920179,1760987440171,-244.94,0.00033165,2]
[391920180,1760987440180,-3242.80179752,0.00033167,2]
[391920181,1760987440196,-258.3825367,0.00033167,2]
[391920182,1760987440205,-9690.82404869,0.000332,120]
[391920183,1760987440234,-584.83926249,0.000332,120]
[391920184,1760987440243,-232.12761081,0.000332,120]
[391920185,1760987440252,-978.21955396,0.000332,120]
[391920186,1760987440262,-197.64581887,0.000332,120]
[391920187,1760987440273,-301.70873826,0.000332,120]
[391920188,1760987440282,-657.65620139,0.000332,120]
[391920189,1760987440292,-861.53937173,0.00033271,2]
[391920190,1760987440302,-168.0,0.0003328,2]
[391920191,1760987440312,-344.04457418,0.00033287,30]
[391920192,1760987440324,-373.5644,0.00033287,30]
[391920193,1760987440339,-282.39102582,0.00033287,30]
[391920194,1760987440349,-1500.0,0.00033306,7]
[391920195,1760987440358,-1000.0,0.00033322,2]
[391920196,1760987440367,-180.97307079,0.0003337,30]
[391920197,1760987440377,-180.97307079,0.0003337,30]
[391920198,1760987440386,-180.97307079,0.0003337,30]
[391920199,1760987440396,-180.97307079,0.0003337,30]
[391920200,1760987440405,-180.97307079,0.0003337,30]
[391920201,1760987440415,-180.97307079,0.0003337,30]
[391920202,1760987440425,-180.97307079,0.0003337,30]
[391920203,1760987440434,-1000.0,0.00033424,30]
[391920204,1760987440444,-3501.18433422,0.00033426,2]
[391920205,1760987440454,-177.0,0.00033434,2]
[391920206,1760987440463,-10000.0,0.000335,2]
[391920207,1760987440473,-1000.0,0.00033561,30]
[391920208,1760987440483,-168.0,0.00033575,2]
[391920209,1760987440493,-156.49,0.00033579,120]
[391920210,1760987440502,-168.0,0.00033626,7]
[391920211,1760987440512,-1500.0,0.00033636,7]
[391920212,1760987440522,-3501.18433422,0.00033684,2]
[391920213,1760987440531,-1000.0,0.00033698,30]
[391920214,1760987440541,-561.92026042,0.00033702,7]
[391920215,1760987440551,-180.97307079,0.00033726,30]
[391920216,1760987440561,-180.97307079,0.00033726,30]
[391920217,1760987440570,-180.97307079,0.00033726,30]
[391920218,1760987440580,-180.97307079,0.00033726,30]
[391920219,1760987440590,-180.97307079,0.00033726,30]
[391920220,1760987440599,-180.97307079,0.00033726,30]
[391920221,1760987440610,-180.97307079,0.00033726,30]
[391920222,1760987440619,-4133.32607523,0.00033785,2]
[391920223,1760987440628,-1000.0,0.00033835,30]
[391920224,1760987440637,-2396.87818695,0.000339,2]
[391920225,1760987440647,-2396.87818695,0.00033934,2]
[391920226,1760987440657,-3501.18433422,0.00033943,2]
[391920227,1760987440666,-2396.87818695,0.00033967,2]
[391920228,1760987440677,-1000.0,0.00033972,30]
[391920229,1760987440687,-13487.1232608,0.00033989,3]
[391920230,1760987440697,-22505.4824743,0.00033999,2]
[391920231,1760987440707,-1000.0,0.00034,2]
[391920232,1760987440717,-150.0,0.00034,10]
[391920233,1760987440727,-2396.87818695,0.00034001,2]
[391920234,1760987440737,-200.0,0.00034027,10]
[391920235,1760987440747,-2396.87818695,0.00034034,2]
[391920236,1760987440756,-1461.78237753,0.00034063,3]
[391920248,1760987442961,-902.0,0.00034063,3]
[391920253,1760987445704,-386.86464907,0.00034063,3]
[391920254,1760987445719,-10736.4762342,0.00034063,3]
[391920255,1760987445729,-2396.87818695,0.00034068,2]
[391920256,1760987445739,-152.0,0.00034071,3]
[391920257,1760987445748,-795.775,0.00034073,2]
[391920258,1760987445759,-786.0,0.00034073,2]
[391920259,1760987445769,-1268.0,0.00034073,2]
[391920260,1760987445778,-510.26700123,0.00034073,2]
[391920261,1760987445862,-2320.052,0.00034073,2]